lending/lending_fUSD_20250122
["ID","MTS","AMOUNT","RATE_DAILY","PERIOD"]
[349983634,1737549039575,-581.53,0.00020253,2]
[349983635,1737549039584,-500.0,0.00020253,2]
[349983636,1737549039593,-500.0,0.00020253,2]
[349983637,1737549039602,-1089.01,0.00020253,2]
[349983638,1737549039612,-500.0,0.00020253,2]
[349983639,1737549039621,-2620.44,0.00020253,2]
[349983640,1737549039630,-1211.77,0.00020253,2]
[349983641,1737549039639,-500.0,0.00020253,2]
[349983642,1737549039650,-802.29,0.00020253,2]
[349983643,1737549039660,-500.0,0.00020253,2]
[349983644,1737549039671,-500.0,0.00020253,2]
[349983645,1737549039680,-500.0,0.00020253,2]
[349983646,1737549039690,-500.0,0.00020253,2]
[349983647,1737549039700,-500.0,0.00020253,2]
[349983648,1737549039710,-500.0,0.00020253,2]
[349983649,1737549039719,-500.0,0.00020253,2]
[349983650,1737549039728,-556.36,0.00020253,2]
[349983651,1737549039737,-500.0,0.00020253,2]
[349983652,1737549039747,-1228.47,0.00020253,2]
[349983653,1737549039756,-500.0,0.00020253,2]
[349983654,1737549039765,-716.78,0.00020253,2]
[349983655,1737549039774,-365.07208135,0.00020253,2]
[349983656,1737549039784,-1543.85,0.00020253,2]
[349983657,1737549039793,-500.0,0.00020253,2]
[349983658,1737549039803,-500.0,0.00020253,2]
[349983659,1737549039812,-919.14,0.00020253,2]
[349983660,1737549039821,-2698.41,0.00020253,2]
[349983661,1737549039831,-500.0,0.00020253,2]
[349983662,1737549039840,-981.74,0.00020253,2]
[349983663,1737549039850,-500.0,0.00020253,2]
[349983664,1737549039860,-500.0,0.00020254,2]
[349983665,1737549039869,-597.71424144,0.00020254,2]
[349983666,1737549039878,-500.0,0.00020254,2]
[349983667,1737549039887,-501.78,0.00020254,2]
[349983668,1737549039896,-500.0,0.00020254,2]
[349983669,1737549039906,-500.0,0.00020254,2]
[349983670,1737549039915,-500.0,0.00020254,2]
[349983671,1737549039924,-500.0,0.00020254,2]
[349983672,1737549039934,-500.0,0.00020254,2]
[349983673,1737549039943,-500.0,0.00020254,2]
[349983674,1737549039952,-500.0,0.00020254,2]
[349983675,1737549039962,-500.0,0.00020254,2]
[349983676,1737549039971,-500.0,0.00020254,2]
[349983677,1737549039980,-304.45187077,0.00020254,2]
[349983678,1737549039989,-500.0,0.00020254,2]
[349983679,1737549039999,-500.0,0.00020254,2]
[349983680,1737549040008,-500.0,0.00020254,2]
[349983681,1737549040017,-604.82,0.00020254,2]
[349983682,1737549040027,-500.0,0.00020254,2]
[349983683,1737549040036,-500.0,0.00020254,2]
[349983684,1737549040046,-548.89,0.00020254,2]
[349983685,1737549040055,-500.0,0.00020254,2]
[349983686,1737549040067,-500.0,0.00020254,2]
[349983687,1737549040077,-500.0,0.00020254,2]
[349983688,1737549040086,-500.0,0.00020254,2]
[349983689,1737549040095,-500.0,0.00020254,2]
[349983690,1737549040105,-500.0,0.00020254,2]
[349983691,1737549040114,-500.0,0.00020254,2]
[349983692,1737549040123,-500.0,0.00020254,2]
[349983693,1737549040132,-500.0,0.00020254,2]
[349983694,1737549040141,-500.0,0.00020254,2]
[349983695,1737549040151,-500.0,0.00020254,2]
[349983696,1737549040160,-500.0,0.00020254,2]
[349983697,1737549040170,-500.0,0.00020254,2]
[349983698,1737549040179,-500.0,0.00020254,2]
[349983699,1737549040188,-500.0,0.00020254,2]
[349983700,1737549040197,-552.08,0.00020254,2]
[349983701,1737549040206,-614.82,0.00020254,2]
[349983702,1737549040215,-500.0,0.00020254,2]
[349983703,1737549040224,-500.0,0.00020254,2]
[349983704,1737549040236,-500.0,0.00020254,2]
[349983705,1737549040246,-500.0,0.00020254,2]
[349983706,1737549040255,-500.0,0.00020254,2]
[349983707,1737549040265,-543.85,0.00020254,2]
[349983708,1737549040274,-500.0,0.00020254,2]
[349983709,1737549040283,-500.0,0.00020254,2]
[349983710,1737549040293,-500.0,0.00020254,2]
[349983711,1737549040304,-616.84,0.00020254,2]
[349983712,1737549040313,-500.0,0.00020254,2]
[349983713,1737549040322,-500.0,0.00020254,2]
[349983714,1737549040332,-500.0,0.00020254,2]
[349983715,1737549040342,-639.14,0.00020254,2]
[349983716,1737549040351,-500.0,0.00020254,2]
[349983717,1737549040362,-500.0,0.00020254,2]
[349983718,1737549040371,-613.53,0.00020254,2]
[349983719,1737549040381,-500.0,0.00020254,2]
[349983720,1737549040390,-500.0,0.00020254,2]
[349983721,1737549040399,-500.0,0.00020254,2]
[349983722,1737549040408,-500.0,0.00020254,2]
[349983723,1737549040417,-500.0,0.00020254,2]
[349983724,1737549040426,-524.98564785,0.00020254,2]
[349983725,1737549040436,-500.0,0.00020254,2]
[349983726,1737549040445,-500.0,0.00020254,2]
[349983727,1737549040456,-500.0,0.00020254,2]
[349983728,1737549040468,-500.0,0.00020254,2]
[349983729,1737549040479,-500.0,0.00020254,2]
[349983730,1737549040488,-500.0,0.00020254,2]
[349983731,1737549040497,-500.0,0.00020254,2]
[349983732,1737549040508,-500.0,0.00020254,2]
[349983733,1737549040518,-500.0,0.00020254,2]
[349983734,1737549040528,-511.51,0.00020254,2]
[349983735,1737549040537,-500.0,0.00020254,2]
[349983736,1737549040547,-500.0,0.00020254,2]
[349983737,1737549040556,-294.44974528,0.00020254,2]
[349983738,1737549040566,-500.0,0.00020254,2]
[349983739,1737549040575,-500.0,0.00020254,2]
[349983740,1737549040584,-594.47,0.00020254,2]
[349983741,1737549040593,-500.0,0.00020254,2]
[349983742,1737549040602,-500.0,0.00020254,2]
[349983743,1737549040612,-500.0,0.00020254,2]
[349983744,1737549040621,-534.03,0.00020254,2]
[349983745,1737549040631,-500.0,0.00020254,2]
[349983746,1737549040640,-690.93,0.00020254,2]
[349983747,1737549040649,-500.0,0.00020254,2]
[349983749,1737549040658,-500.0,0.00020254,2]
[349983751,1737549040667,-500.0,0.00020254,2]
[349983752,1737549040676,-749.51,0.00020254,2]
[349983753,1737549040686,-546.05,0.00020254,2]
[349983754,1737549040695,-741.19,0.00020254,2]
[349983755,1737549040704,-600.68,0.00020254,2]
[349983756,1737549040714,-500.0,0.00020254,2]
[349983757,1737549040723,-500.0,0.00020254,2]
[349983758,1737549040732,-500.0,0.00020254,2]
[349983759,1737549040741,-549.78,0.00020254,2]
[349983760,1737549040751,-500.0,0.00020254,2]
[349983761,1737549040761,-596.47,0.00020254,2]
[349983762,1737549040770,-500.0,0.00020254,2]
[349983763,1737549040780,-500.0,0.00020254,2]
[349983764,1737549040790,-213.03368819,0.00020264,2]
[349983765,1737549040799,-1335.98476408,0.00020328,2]
[349983766,1737549040809,-333.39474199,0.00020329,2]
[349983767,1737549040818,-307.23134397,0.00020344,2]
[349983768,1737549040827,-150.0,0.00020356,2]
[349983769,1737549040836,-982.04,0.00020356,2]
[349983770,1737549040846,-150.0,0.00020356,2]
[349983771,1737549040856,-150.0,0.00020356,2]
[349983772,1737549040865,-437.79,0.00020356,2]
[349983773,1737549040874,-298.05,0.00020356,2]
[349983774,1737549040884,-319.61,0.00020356,2]
[349983775,1737549040894,-150.0,0.00020356,2]
[349983776,1737549040903,-298.05,0.00020356,2]
[349983777,1737549040913,-298.05,0.00020356,2]
[349983778,1737549040922,-298.05,0.00020356,2]
[349983779,1737549040932,-150.0,0.00020356,2]
[349983780,1737549040941,-298.05,0.00020356,2]
[349983781,1737549040950,-297.53,0.00020356,2]
[349983782,1737549040960,-298.01,0.00020356,2]
[349983783,1737549040969,-176.28,0.00020405,2]
[349983784,1737549040978,-500.0,0.00020426,2]
[349983785,1737549040988,-500.0,0.00020426,2]
[349983786,1737549040997,-500.0,0.00020426,2]
[349983787,1737549041006,-500.0,0.00020426,2]
[349983788,1737549041016,-241.7257082,0.00020426,2]
[349983789,1737549041025,-501.2655736,0.00020426,2]
[349983790,1737549041035,-500.0,0.00020426,2]
[349983791,1737549041044,-500.0,0.00020426,2]
[349983792,1737549041053,-500.0,0.00020426,2]
[349983793,1737549041065,-541.68469603,0.00020426,2]
[349983794,1737549041075,-500.0,0.00020426,2]
[349983795,1737549041084,-500.0,0.00020426,2]
[349983796,1737549041094,-500.0,0.00020426,2]
[349983797,1737549041103,-500.0,0.00020426,2]
[349983798,1737549041113,-500.0,0.00020426,2]
[349983799,1737549041122,-500.0,0.00020426,2]
[349983800,1737549041132,-500.0,0.00020426,2]
[349983801,1737549041142,-500.0,0.00020426,2]
[349983802,1737549041152,-336.03675474,0.00020426,2]
[349983803,1737549041161,-500.0,0.00020426,2]
[349983804,1737549041170,-500.0,0.00020426,2]
[349983805,1737549041179,-500.0,0.00020426,2]
[349983806,1737549041189,-500.0,0.00020426,2]
[349983807,1737549041199,-500.0,0.00020426,2]
[349983808,1737549041209,-197.00459664,0.00020426,2]
[349983809,1737549041218,-500.0,0.00020426,2]
[349983810,1737549041228,-500.0,0.00020426,2]
[349983811,1737549041238,-500.0,0.00020426,2]
[349983812,1737549041248,-500.0,0.00020426,2]
[349983813,1737549041257,-500.0,0.00020426,2]
[349983814,1737549041266,-500.0,0.00020426,2]
[349983815,1737549041275,-500.0,0.00020426,2]
[349983816,1737549041284,-501.03422384,0.00020426,2]
[349983817,1737549041293,-500.0,0.00020426,2]
[349983818,1737549041303,-528.51747147,0.00020426,2]
[349983819,1737549041312,-507.00079207,0.00020426,2]
[349983820,1737549041321,-511.14148915,0.00020426,2]
[349983821,1737549041330,-500.0,0.00020426,2]
[349983822,1737549041339,-521.02803385,0.00020426,2]
[349983823,1737549041348,-500.0,0.00020426,2]
[349983824,1737549041358,-500.0,0.00020426,2]
[349983825,1737549041367,-500.0,0.00020426,2]
[349983826,1737549041376,-500.0,0.00020426,2]
[349983827,1737549041385,-500.0,0.00020426,2]
[349983828,1737549041394,-500.0,0.00020426,2]
[349983829,1737549041403,-500.0,0.00020426,2]
[349983830,1737549041412,-500.0,0.00020426,2]
[349983831,1737549041420,-500.0,0.00020426,2]
[349983832,1737549041429,-500.0,0.00020426,2]
[349983833,1737549041439,-500.0,0.00020426,2]
[349983834,1737549041448,-505.86120722,0.00020426,2]
[349983835,1737549041457,-500.0,0.00020426,2]
[349983836,1737549041465,-500.0,0.00020426,2]
[349983837,1737549041475,-492.78479643,0.00020426,2]
[349983838,1737549041484,-500.0,0.00020426,2]
[349983839,1737549041493,-500.0,0.00020426,2]
[349983840,1737549041501,-500.0,0.00020426,2]
[349983841,1737549041510,-509.74396082,0.00020426,2]
[349983842,1737549041519,-500.0,0.00020426,2]
[349983843,1737549041528,-500.0,0.00020426,2]
[349983844,1737549041537,-502.13693435,0.00020426,2]
[349983845,1737549041546,-505.61284871,0.00020426,2]
[349983846,1737549041555,-500.0,0.00020426,2]
[349983847,1737549041564,-503.1635753,0.00020426,2]
[349983848,1737549041573,-503.94193267,0.00020426,2]
[349983849,1737549041582,-500.0,0.00020426,2]
[349983850,1737549041591,-500.0,0.00020426,2]
[349983851,1737549041600,-500.0,0.00020426,2]
[349983852,1737549041609,-500.0,0.00020426,2]
[349983853,1737549041618,-518.2,0.00020426,2]
[349983854,1737549041627,-500.0,0.00020426,2]
[349983855,1737549041636,-500.0,0.00020426,2]
[349983856,1737549041645,-500.0,0.00020426,2]
[349983857,1737549041654,-500.0,0.00020426,2]
[349983858,1737549041664,-500.0,0.00020426,2]
[349983859,1737549041676,-500.0,0.00020426,2]
[349983860,1737549041686,-500.0,0.00020426,2]
[349983861,1737549041695,-500.0,0.00020426,2]
[349983862,1737549041705,-515.43423087,0.00020426,2]
[349983863,1737549041714,-500.0,0.00020426,2]
[349983864,1737549041724,-507.85849695,0.00020426,2]
[349983865,1737549041733,-500.0,0.00020426,2]
[349983866,1737549041742,-500.0,0.00020426,2]
[349983867,1737549041751,-500.0,0.00020426,2]
[349983868,1737549041761,-500.0,0.00020426,2]
[349983869,1737549041770,-500.0,0.00020426,2]
[349983870,1737549041779,-595.67,0.00020426,2]
[349983871,1737549041788,-500.0,0.00020426,2]
[349983872,1737549041797,-910.2,0.00020426,2]
[349983873,1737549041807,-1176.07,0.00020426,2]
[349983874,1737549041816,-1124.32,0.00020426,2]
[349983875,1737549041825,-2693.46,0.00020426,2]
[349983876,1737549041834,-500.0,0.00020426,2]
[349983877,1737549041847,-5144.43,0.00020426,2]
[349983878,1737549041862,-500.0,0.00020426,2]
[349983879,1737549041871,-727.29,0.00020426,2]
[349983880,1737549041880,-500.0,0.00020426,2]
[349983881,1737549041890,-612.69,0.00020426,2]
[349983882,1737549041899,-500.0,0.00020426,2]
[349983883,1737549041908,-1727.17,0.00020426,2]
[349983884,1737549041918,-500.0,0.00020426,2]
[349983885,1737549041927,-500.0,0.00020426,2]
[349983886,1737549041939,-500.0,0.00020426,2]
[349983887,1737549041953,-716.33,0.00020426,2]
[349983888,1737549041964,-500.0,0.00020426,2]
[349983889,1737549041974,-500.0,0.00020426,2]
[349983890,1737549041984,-500.0,0.00020426,2]
[349983891,1737549041993,-1059.07,0.00020426,2]
[349983892,1737549042002,-500.0,0.00020426,2]
[349983893,1737549042015,-500.0,0.00020426,2]
[349983894,1737549042024,-1114.06,0.00020426,2]
[349983895,1737549042034,-500.0,0.00020426,2]
[349983896,1737549042043,-300.0,0.00020426,2]
[349983897,1737549042052,-500.0,0.00020426,2]
[349983898,1737549042063,-500.0,0.00020426,2]
[349983899,1737549042076,-500.0,0.00020426,2]
[349983900,1737549042085,-500.0,0.00020426,2]
[349983901,1737549042094,-500.0,0.00020426,2]
[349983902,1737549042106,-500.0,0.00020426,2]
[349983903,1737549042115,-1000.0,0.00020426,2]
[349983904,1737549042124,-500.0,0.00020426,2]
[349983905,1737549042134,-634.21,0.00020426,2]
[349983906,1737549042144,-500.0,0.00020426,2]
[349983907,1737549042154,-500.0,0.00020426,2]
[349983908,1737549042164,-500.0,0.00020426,2]
[349983909,1737549042173,-500.0,0.00020426,2]
[349983910,1737549042184,-500.0,0.00020426,2]
[349983911,1737549042194,-1624.3,0.00020426,2]
[349983912,1737549042204,-500.0,0.00020426,2]
[349983913,1737549042214,-500.0,0.00020426,2]
[349983914,1737549042225,-500.0,0.00020426,2]
[349983915,1737549042236,-1154.89,0.00020426,2]
[349983916,1737549042246,-500.0,0.00020426,2]
[349983917,1737549042255,-500.0,0.00020426,2]
[349983918,1737549042267,-500.0,0.00020426,2]
[349983919,1737549042277,-500.0,0.00020426,2]
[349983920,1737549042286,-500.0,0.00020426,2]
[349983921,1737549042296,-504.28576485,0.00020426,2]
[349983922,1737549042306,-500.0,0.00020426,2]
[349983923,1737549042316,-507.03306611,0.00020426,2]
[349983924,1737549042326,-500.0,0.00020426,2]
[349983925,1737549042335,-500.0,0.00020426,2]
[349983926,1737549042343,-500.0,0.00020426,2]
[349983927,1737549042352,-510.53006878,0.00020426,2]
[349983928,1737549042363,-500.0,0.00020426,2]
[349983929,1737549042372,-500.0,0.00020426,2]
[349983930,1737549042381,-500.0,0.00020426,2]
[349983931,1737549042390,-500.0,0.00020426,2]
[349983932,1737549042399,-500.0,0.00020426,2]
[349983933,1737549042408,-214.87056938,0.00020427,2]
[349983934,1737549042416,-500.0,0.00020427,2]
[349983935,1737549042425,-500.0,0.00020427,2]
[349983936,1737549042434,-500.0,0.00020427,2]
[349983937,1737549042443,-500.0,0.00020427,2]
[349983938,1737549042451,-500.0,0.00020427,2]
[349983939,1737549042459,-500.0,0.00020427,2]
[349983940,1737549042468,-500.0,0.00020427,2]
[349983941,1737549042477,-500.0,0.00020427,2]
[349983942,1737549042633,-500.0,0.00020427,2]
[349983943,1737549042643,-500.0,0.00020427,2]
[349983944,1737549042653,-500.0,0.00020427,2]
[349983945,1737549042663,-500.0,0.00020427,2]
[349983946,1737549042672,-500.0,0.00020427,2]
[349983947,1737549042681,-500.0,0.00020427,2]
[349983948,1737549042690,-500.0,0.00020427,2]
[349983949,1737549042699,-500.0,0.00020427,2]
[349983950,1737549042708,-500.0,0.00020427,2]
[349983951,1737549042717,-213.03368819,0.00020445,2]
[349983952,1737549042727,-500.0,0.00020527,2]
[349983953,1737549042736,-420.42268126,0.00020527,2]
[349983954,1737549042745,-516.62,0.00020527,2]
[349983955,1737549042755,-500.0,0.00020527,2]
[349983956,1737549042764,-500.0,0.00020527,2]
[349983957,1737549042773,-500.0,0.00020527,2]
[349983958,1737549042782,-530.02,0.00020527,2]
[349983959,1737549042792,-622.68,0.00020527,2]
[349983960,1737549042801,-500.0,0.00020527,2]
[349983961,1737549042810,-465.621511,0.00020527,2]
[349983962,1737549042818,-500.0,0.00020527,2]
[349983963,1737549042828,-500.0,0.00020527,2]
[349983964,1737549042837,-661.91,0.00020527,2]
[349983966,1737549042845,-759.510306,0.00020527,2]
[349983968,1737549042855,-777.07,0.00020527,2]
[349983969,1737549042865,-500.0,0.00020527,2]
[349983971,1737549042874,-500.0,0.00020527,2]
[349983973,1737549042884,-500.0,0.00020527,2]
[349983975,1737549042893,-500.0,0.00020527,2]
[349983977,1737549042902,-500.0,0.00020527,2]
[349983979,1737549042911,-682.69,0.00020527,2]
[349983980,1737549042920,-715.54,0.00020527,2]
[349983981,1737549042929,-569.24,0.00020527,2]
[349983982,1737549042939,-500.0,0.00020527,2]
[349983983,1737549042948,-500.0,0.00020527,2]
[349983985,1737549042957,-500.0,0.00020527,2]
[349983987,1737549042967,-500.0,0.00020527,2]
[349983991,1737549042976,-500.0,0.00020527,2]
[349983993,1737549042985,-500.0,0.00020527,2]
[349983997,1737549042995,-500.0,0.00020527,2]
[349984000,1737549043004,-500.0,0.00020527,2]
[349984003,1737549043013,-500.0,0.00020527,2]
[349984005,1737549043022,-500.0,0.00020527,2]
[349984006,1737549043032,-500.0,0.00020527,2]
[349984008,1737549043041,-500.0,0.00020527,2]
[349984011,1737549043051,-500.0,0.00020527,2]
[349984013,1737549043061,-500.0,0.00020527,2]
[349984015,1737549043076,-580.08,0.00020527,2]
[349984017,1737549043085,-1034.13,0.00020527,2]
[349984019,1737549043095,-1918.8,0.00020527,2]
[349984021,1737549043105,-1510.81,0.00020527,2]
[349984023,1737549043116,-1016.66,0.00020527,2]
[349984025,1737549043126,-971.81,0.00020527,2]
[349984027,1737549043135,-500.0,0.00020527,2]
[349984029,1737549043146,-963.7,0.00020527,2]
[349984031,1737549043155,-1351.87,0.00020527,2]
[349984033,1737549043167,-500.0,0.00020527,2]
[349984036,1737549043177,-519.8,0.00020527,2]
[349984038,1737549043186,-726.58,0.00020527,2]
[349984040,1737549043195,-756.68,0.00020527,2]
[349984041,1737549043204,-1361.76,0.00020527,2]
[349984042,1737549043214,-1110.66,0.00020527,2]
[349984043,1737549043223,-652.9,0.00020527,2]
[349984044,1737549043233,-769.05,0.00020527,2]
[349984045,1737549043243,-555.35,0.00020527,2]
[349984046,1737549043251,-1066.49,0.00020527,2]
[349984047,1737549043261,-795.04,0.00020527,2]
[349984048,1737549043270,-2707.27,0.00020527,2]
[349984049,1737549043279,-500.0,0.00020527,2]
[349984050,1737549043289,-1689.92,0.00020527,2]
[349984051,1737549043298,-1448.38,0.00020527,2]
[349984052,1737549043307,-500.0,0.00020527,2]
[349984053,1737549043316,-889.69,0.00020527,2]
[349984054,1737549043325,-682.43,0.00020527,2]
[349984055,1737549043335,-977.14,0.00020527,2]
[349984056,1737549043344,-500.0,0.00020527,2]
[349984057,1737549043353,-775.54,0.00020527,2]
[349984058,1737549043364,-574.34,0.00020527,2]
[349984059,1737549043374,-1681.08,0.00020527,2]
[349984060,1737549043383,-550.22,0.00020527,2]
[349984061,1737549043393,-1831.25,0.00020527,2]
[349984062,1737549043403,-1003.72,0.00020527,2]
[349984063,1737549043413,-500.0,0.00020527,2]
[349984064,1737549043423,-1016.3,0.00020527,2]
[349984065,1737549043432,-1242.63,0.00020527,2]
[349984066,1737549043442,-637.13,0.00020527,2]
[349984067,1737549043452,-895.54,0.00020527,2]
[349984068,1737549043462,-500.0,0.00020527,2]
[349984069,1737549043471,-500.0,0.00020527,2]
[349984070,1737549043481,-4356.71,0.00020527,2]
[349984071,1737549043492,-2195.16,0.00020527,2]
[349984072,1737549043505,-2686.25,0.00020527,2]
[349984073,1737549043518,-500.0,0.00020527,2]
[349984074,1737549043528,-500.0,0.00020527,2]
[349984075,1737549043538,-919.29,0.00020527,2]
[349984076,1737549043547,-1514.78,0.00020527,2]
[349984077,1737549043556,-500.0,0.00020527,2]
[349984078,1737549043565,-2829.02,0.00020527,2]
[349984081,1737549043575,-840.97,0.00020527,2]
[349984083,1737549043584,-500.0,0.00020527,2]
[349984084,1737549043593,-500.0,0.00020527,2]
[349984086,1737549043602,-1467.47,0.00020527,2]
[349984087,1737549043612,-974.6,0.00020527,2]
[349984088,1737549043620,-1423.79,0.00020527,2]
[349984089,1737549043630,-500.0,0.00020527,2]
[349984090,1737549043639,-1034.24,0.00020527,2]
[349984091,1737549043648,-1012.59,0.00020527,2]
[349984093,1737549043657,-918.95,0.00020527,2]
[349984095,1737549043666,-500.0,0.00020527,2]
[349984096,1737549043676,-880.71,0.00020527,2]
[349984099,1737549043686,-500.0,0.00020527,2]
[349984101,1737549043695,-556.06,0.00020527,2]
[349984103,1737549043705,-3001.3,0.00020527,2]
[349984105,1737549043716,-500.0,0.00020527,2]
[349984106,1737549043726,-500.0,0.00020527,2]
[349984107,1737549043735,-1480.58,0.00020527,2]
[349984108,1737549043745,-581.53,0.00020527,2]
[349984109,1737549043754,-500.0,0.00020527,2]
[349984110,1737549043763,-500.0,0.00020527,2]
[349984111,1737549043772,-1089.01,0.00020527,2]
[349984112,1737549043782,-500.0,0.00020527,2]
[349984113,1737549043792,-2620.44,0.00020527,2]
[349984114,1737549043802,-1211.77,0.00020527,2]
[349984115,1737549043812,-802.29,0.00020527,2]
[349984116,1737549043822,-500.0,0.00020527,2]
[349984117,1737549043832,-500.0,0.00020527,2]
[349984118,1737549043842,-490.82712244,0.00020527,2]
[349984119,1737549043852,-500.0,0.00020527,2]
[349984120,1737549043863,-500.0,0.00020527,2]
[349984121,1737549043873,-500.0,0.00020527,2]
[349984122,1737549043883,-500.0,0.00020527,2]
[349984123,1737549043893,-556.36,0.00020527,2]
[349984124,1737549043903,-500.0,0.00020527,2]
[349984125,1737549043912,-1228.47,0.00020527,2]
[349984126,1737549043922,-500.0,0.00020527,2]
[349984127,1737549043931,-716.78,0.00020527,2]
[349984128,1737549043940,-1543.85,0.00020527,2]
[349984129,1737549043950,-500.0,0.00020527,2]
[349984130,1737549043959,-500.0,0.00020527,2]
[349984131,1737549043969,-919.14,0.00020527,2]
[349984132,1737549043978,-2698.41,0.00020527,2]
[349984133,1737549043987,-500.0,0.00020527,2]
[349984134,1737549043997,-981.74,0.00020527,2]
[349984135,1737549044006,-500.0,0.00020527,2]
[349984136,1737549044015,-500.0,0.00020528,2]
[349984138,1737549044024,-500.0,0.00020528,2]
[349984140,1737549044034,-604.82,0.00020528,2]
[349984142,1737549044044,-500.0,0.00020528,2]
[349984144,1737549044054,-500.0,0.00020528,2]
[349984146,1737549044068,-548.89,0.00020528,2]
[349984148,1737549044078,-500.0,0.00020528,2]
[349984150,1737549044087,-500.0,0.00020528,2]
[349984151,1737549044097,-500.0,0.00020528,2]
[349984152,1737549044107,-500.0,0.00020528,2]
[349984153,1737549044116,-500.0,0.00020528,2]
[349984154,1737549044126,-500.0,0.00020528,2]
[349984155,1737549044135,-500.0,0.00020528,2]
[349984156,1737549044146,-500.0,0.00020528,2]
[349984157,1737549044156,-500.0,0.00020528,2]
[349984158,1737549044165,-500.0,0.00020528,2]
[349984159,1737549044175,-552.08,0.00020528,2]
[349984160,1737549044185,-614.82,0.00020528,2]
[349984161,1737549044194,-500.0,0.00020528,2]
[349984162,1737549044204,-500.0,0.00020528,2]
[349984163,1737549044214,-543.85,0.00020528,2]
[349984164,1737549044224,-500.0,0.00020528,2]
[349984165,1737549044234,-500.0,0.00020528,2]
[349984166,1737549044243,-616.84,0.00020528,2]
[349984167,1737549044252,-500.0,0.00020528,2]
[349984168,1737549044262,-500.0,0.00020528,2]
[349984169,1737549044272,-639.14,0.00020528,2]
[349984170,1737549044281,-500.0,0.00020528,2]
[349984171,1737549044290,-613.53,0.00020528,2]
[349984172,1737549044299,-500.0,0.00020528,2]
[349984173,1737549044309,-500.0,0.00020528,2]
[349984174,1737549044318,-500.0,0.00020528,2]
[349984175,1737549044328,-511.51,0.00020528,2]
[349984176,1737549044337,-500.0,0.00020528,2]
[349984177,1737549044348,-500.0,0.00020528,2]
[349984178,1737549044358,-500.0,0.00020528,2]
[349984179,1737549044367,-594.47,0.00020528,2]
[349984180,1737549044376,-308.33637342,0.00020528,2]
[349984181,1737549044386,-500.0,0.00020528,2]
[349984182,1737549044396,-500.0,0.00020528,2]
[349984183,1737549044405,-534.03,0.00020528,2]
[349984184,1737549044417,-690.93,0.00020528,2]
[349984185,1737549044426,-500.0,0.00020528,2]
[349984186,1737549044436,-500.0,0.00020528,2]
[349984187,1737549044445,-500.0,0.00020528,2]
[349984188,1737549044454,-749.51,0.00020528,2]
[349984189,1737549044464,-546.05,0.00020528,2]
[349984190,1737549044473,-741.19,0.00020528,2]
[349984191,1737549044482,-600.68,0.00020528,2]
[349984192,1737549044492,-500.0,0.00020528,2]